Workbook

Sheet Chart
C1: =CONCATENATE("Template Version ="," ",ASPXVer) -> Template Version = APIBufferReport2b | D1: Template saved on | E1: =TemplateSaveDate -> 2023-05-17T14:04:29
J3: * Click once to connect the buffer chart to your Playbook site.
C4: Configuration Settings: | G4: Select Milestones/Tasks to Track: | J4: Trajectory Periods:
C5: Buffer Report: | D5: XP 2000 - Prototype 1 ready for testing | G5: =CONCATENATE("Only milestones that have appeared on or after ",TEXT(Formatting!Q2,DateFormatText)," are listed.") -> Only milestones that have appeared on or after 7/11/2023 are listed. | J5: =CONCATENATE("Min (",TEXT(WORKDAY(DateRun,-K5),DateFormatText),")") -> Min (5/10/2023) | K5: 5 | L5: days
C6: Report Type: | J6: =CONCATENATE("Max (",TEXT(WORKDAY(DateRun,-K6),DateFormatText),")") -> Max (5/3/2023) | K6: 10 | L6: days
J7: Specific Date | K7: 2017-08-08
C8: Located…
C11: Chart Settings: | G11: Select Options to Show: | J11: Calculated Status Dates (today)
C12: Plot Buffer Use Every: | D12: 1 | E12: weekdays | J12: OK → Warning | K12: =WORKDAY(BufferStartDate,Formatting!I4+(TODAY()-ProjectStartDate)*(Formatting!I5-Formatting!I4)/(BufferEndDate-ProjectStartDate)) -> 2023-07-13
C13: Number of Days to Show Above Buffer: | D13: 0 | E13: ="weekdays ("&MaxDaysAboveBuffer &" to show all)" -> weekdays (-14 to show all) | J13: Warning → Danger | K13: =WORKDAY(BufferStartDate,Formatting!J4+(TODAY()-ProjectStartDate)*(Formatting!J5-Formatting!J4)/(BufferEndDate-ProjectStartDate)) -> 2023-07-17
C14: Number of Days to Show Below Zero: | D14: 0 | E14: ="weekdays ("&-MinDaysBelowZero &" to show all)" -> weekdays (0 to show all)
C15: Date Format: | D15: =TODAY() -> 2023-05-17

Sheet MainData (hidden)
A1: Reporting Date | B1: Days From Start | C1: Ahead | D1: On Track | E1: Some Risk | F1: High Risk | G1: Behind | H1: Milestone Dates | I1: Impact Reasons | J1: Impact | K1: TBD2 | L1: GridlineY | M1: _Finish Line | N1: Prototype 1 ready for testing | O1: Column15 | P1: Column16 | Q1: Column17 | R1: Column18 | S1: Column19 | T1: Column20 | U1: Column21 | V1: Column22 | W1: Column23 | X1: Column24 | Y1: Column25 | Z1: Column26 | AA1: Column27 | AB1: Column28 | AC1: Column29 | AD1: Column30 | AE1: Column31 | AF1: Column32 | AG1: Column33 | AH1: Column34 | AI1: Column35 | AJ1: Column36 | AK1: Column37 | AL1: Column38 | AM1: Column39 | AN1: Column40 | AO1: Column41 | AP1: Column42
A2: 2023-05-17 | B2: 0 | C2: 0 | D2: 2 | E2: 2 | F2: 10 | G2: 2 | H2: 11-Jul-23 | N2: 0
A3: 2023-05-18 | B3: 1
A4: 2023-05-19 | B4: 2
A5: 2023-05-22 | B5: 3
A6: 2023-05-23 | B6: 4
A7: 2023-05-24 | B7: 5
A8: 2023-05-25 | B8: 6
A9: 2023-05-26 | B9: 7
A10: 2023-05-29 | B10: 8
A11: 2023-05-30 | B11: 9
A12: 2023-05-31 | B12: 10
A13: 2023-06-01 | B13: 11
A14: 2023-06-02 | B14: 12
A15: 2023-06-05 | B15: 13
A16: 2023-06-06 | B16: 14
A17: 2023-06-07 | B17: 15
A18: 2023-06-08 | B18: 16
A19: 2023-06-09 | B19: 17
A20: 2023-06-12 | B20: 18
A21: 2023-06-13 | B21: 19
A22: 2023-06-14 | B22: 20
A23: 2023-06-15 | B23: 21
A24: 2023-06-16 | B24: 22
A25: 2023-06-19 | B25: 23
A26: 2023-06-20 | B26: 24
A27: 2023-06-21 | B27: 25
A28: 2023-06-22 | B28: 26
A29: 2023-06-23 | B29: 27
A30: 2023-06-26 | B30: 28
A31: 2023-06-27 | B31: 29
A32: 2023-06-28 | B32: 30
A33: 2023-06-29 | B33: 31
A34: 2023-06-30 | B34: 32
A35: 2023-07-03 | B35: 33
A36: 2023-07-04 | B36: 34
A37: 2023-07-05 | B37: 35
A38: 2023-07-06 | B38: 36
A39: 2023-07-07 | B39: 37
A40: 2023-07-10 | B40: 38
A41: 2023-07-11 | B41: 39 | L41: 0 | M41: 0
A42: 2023-07-12 | B42: 40 | L42: 1
A43: 2023-07-13 | B43: 41 | L43: 2
A44: 2023-07-14 | B44: 42 | L44: 3
A45: 2023-07-17 | B45: 43 | L45: 4
A46: 2023-07-18 | B46: 44 | L46: 5
A47: 2023-07-19 | B47: 45 | L47: 6
A48: 2023-07-20 | B48: 46 | L48: 7
A49: 2023-07-21 | B49: 47 | L49: 8
A50: 2023-07-24 | B50: 48 | L50: 9
A51: 2023-07-25 | B51: 49 | L51: 10
A52: 2023-07-26 | B52: 50 | L52: 11
A53: 2023-07-27 | B53: 51 | L53: 12
A54: 2023-07-28 | B54: 52 | L54: 13
A55: 2023-07-31 | B55: 53 | C55: 0 | D55: 10 | E55: 2 | F55: 2 | G55: 2 | L55: 14
A56: 2023-08-01 | B56: 54 | L56: 15
A57: 2023-08-02 | B57: 55 | C57: 0 | D57: 10 | E57: 2 | F57: 2 | G57: 2 | L57: 16 | M57: 16

Sheet APIData (hidden)
A1: A | B1: B | C1: C | D1: D | E1: E | F1: F | G1: G | H1: H | I1: I | J1: J | K1: K | L1: L | M1: M | N1: N | O1: O | P1: P | Q1: Q | R1: R | S1: S | T1: T | U1: U | V1: V | W1: W | X1: X | Y1: Y | Z1: Z | AA1: AA | AB1: AB | AC1: AC | AD1: AD | AE1: AE | AF1: AF | AG1: AG | AH1: AH | AI1: AI | AJ1: AJ | AK1: AK | AL1: AL | AM1: AM | AN1: AN | AO1: AO | AP1: AP | AQ1: AQ
A2: 1 | B2: Report Name | C2: Message | D2: Time Run | E2: Finish | F2: Tracking Start Date | G2: Buffer Start Date | H2: Buffer End Date | I2: Buffer Duration | J2: Green on Day0 | K2: Red on Last Day | L2: Warning Size | M2: Number of Tracks | N2: Latest Milestone | O2: Latest Milestone Date | P2: Buffer Used | Q2: NumOfErrors | R2: WarningScore | S2: Tasks with Warnings
A3: 2 | B3: XP 2000 - Prototype 1 ready for testing | D3: 2023-05-17 16:44:15 | F3: 2023-05-17 | G3: 2023-07-12 | H3: 2023-07-31 | I3: 14 | J3: 2 | K3: 2 | L3: 2 | M3: 1 | N3: Prototype 1 ready for testing | O3: 2023-07-11 | Q3: 0 | R3: 3 | S3: Bring-up/Smoke test 1st proto (Critical / Unassigned) Acquire parts, kit, send to supplier: Pwr Board (Near Critical / Planned Out of Date -1 d)
A4: 3 | B4: Reporting Date | C4: Days From Start | D4: Ahead | E4: On Track | F4: Some Risk | G4: High Risk | H4: Behind | I4: Milestone Dates | J4: Impact Reasons | K4: Impact | L4: TBD2 | M4: GridlineY | N4: _Finish Line | O4: Prototype 1 ready for testing
A5: 4 | B5: 2023-05-17 | C5: 0 | D5: 0 | E5: 2 | F5: 2 | G5: 10 | H5: 2 | I5: 11-Jul-23 | O5: 0
A6: 5 | B6: 2023-05-18 | C6: 1
A7: 6 | B7: 2023-05-19 | C7: 2
A8: 7 | B8: 2023-05-22 | C8: 3
A9: 8 | B9: 2023-05-23 | C9: 4
A10: 9 | B10: 2023-05-24 | C10: 5
A11: 10 | B11: 2023-05-25 | C11: 6
A12: 11 | B12: 2023-05-26 | C12: 7
A13: 12 | B13: 2023-05-29 | C13: 8
A14: 13 | B14: 2023-05-30 | C14: 9
A15: 14 | B15: 2023-05-31 | C15: 10
A16: 15 | B16: 2023-06-01 | C16: 11
A17: 16 | B17: 2023-06-02 | C17: 12
A18: 17 | B18: 2023-06-05 | C18: 13
A19: 18 | B19: 2023-06-06 | C19: 14
A20: 19 | B20: 2023-06-07 | C20: 15
A21: 20 | B21: 2023-06-08 | C21: 16
A22: 21 | B22: 2023-06-09 | C22: 17
A23: 22 | B23: 2023-06-12 | C23: 18
A24: 23 | B24: 2023-06-13 | C24: 19
A25: 24 | B25: 2023-06-14 | C25: 20
A26: 25 | B26: 2023-06-15 | C26: 21
A27: 26 | B27: 2023-06-16 | C27: 22
A28: 27 | B28: 2023-06-19 | C28: 23
A29: 28 | B29: 2023-06-20 | C29: 24
A30: 29 | B30: 2023-06-21 | C30: 25
A31: 30 | B31: 2023-06-22 | C31: 26
A32: 31 | B32: 2023-06-23 | C32: 27
A33: 32 | B33: 2023-06-26 | C33: 28
A34: 33 | B34: 2023-06-27 | C34: 29
A35: 34 | B35: 2023-06-28 | C35: 30
A36: 35 | B36: 2023-06-29 | C36: 31
A37: 36 | B37: 2023-06-30 | C37: 32
A38: 37 | B38: 2023-07-03 | C38: 33
A39: 38 | B39: 2023-07-04 | C39: 34
A40: 39 | B40: 2023-07-05 | C40: 35
A41: 40 | B41: 2023-07-06 | C41: 36
A42: 41 | B42: 2023-07-07 | C42: 37
A43: 42 | B43: 2023-07-10 | C43: 38
A44: 43 | B44: 2023-07-11 | C44: 39 | M44: 0 | N44: 0
A45: 44 | B45: 2023-07-12 | C45: 40 | M45: 1
A46: 45 | B46: 2023-07-13 | C46: 41 | M46: 2
A47: 46 | B47: 2023-07-14 | C47: 42 | M47: 3
A48: 47 | B48: 2023-07-17 | C48: 43 | M48: 4
A49: 48 | B49: 2023-07-18 | C49: 44 | M49: 5
A50: 49 | B50: 2023-07-19 | C50: 45 | M50: 6
A51: 50 | B51: 2023-07-20 | C51: 46 | M51: 7
A52: 51 | B52: 2023-07-21 | C52: 47 | M52: 8
A53: 52 | B53: 2023-07-24 | C53: 48 | M53: 9
A54: 53 | B54: 2023-07-25 | C54: 49 | M54: 10
A55: 54 | B55: 2023-07-26 | C55: 50 | M55: 11
A56: 55 | B56: 2023-07-27 | C56: 51 | M56: 12
A57: 56 | B57: 2023-07-28 | C57: 52 | M57: 13
A58: 57 | B58: 2023-07-31 | C58: 53 | D58: 0 | E58: 10 | F58: 2 | G58: 2 | H58: 2 | M58: 14
A59: 59 | B59: 2023-08-01 | C59: 54 | M59: 15
A60: 60 | B60: 2023-08-02 | C60: 55 | D60: 0 | E60: 10 | F60: 2 | G60: 2 | H60: 2 | M60: 16 | N60: 16

Sheet Formatting (hidden)
A1: 2023-05-17T14:04:29 | F1: Shaded Areas | N1: Gridlines & date labels | S1: =_xlfn.SINGLE(BufferDays) -> 14 | X1: AvailableTracks | Y1: SelectedTracks | Z1: updateSelected | AB1: DateRunFrom0 | AC1: =NETWORKDAYS(ProjectStartDate, DateRun) -> 1 | AD1: firstpoint | AE1: =INDEX(MainData!$N$58:$N$842,MATCH(TRUE,MainData!$N$58:$N$842<>"",0)) ->  | AF1: firstdate | AG1: =INDEX(MainData!$A$5:$A$842,MATCH(TRUE,MainData!$C$5:$C$842<>"",0)) -> 2023-07-31 | AH1: Todaypoint | AI1: =INDEX(MainData!$N$58:$N$842,TodayRow,0) -> 0 | AL1: fixedName | AM1: CodeName | AN1: visibleName
B2: Chart Scaling (Automatic) | H2: Ahead | I2: OK | J2: Warning | K2: Danger | L2: Blown | N2: =xMax -> 53 | O2: =BufferEndDate+AboveBufferChartDays -> 45138 | P2: =LeftMin -> 0 | Q2: =WORKDAY(APIData!G3,-BelowZeroChartDays-1) -> 2023-07-11 | X2: Prototype 1 ready for testing | Y2: Prototype 1 ready for testing | Z2: TRUE | AB2: Projection Periods | AC2: change | AD2: timespan | AE2: slope | AF2: X | AG2: Y | AI2: ShowOptions | AJ2: Shown | AL2: y | AM2: Sheet1 | AN2: Chart
C3: X-Axis | D3: Left Y-Axis | F3: X-Axis | G3: X-Axis 2010 | H3: Y-Axis | I3: Y-Axis | J3: Y-Axis | K3: Y-Axis | L3: Y-Axis | N3: =N2 -> 53 | O3: =BufferEndDate+AboveBufferChartDays -> 45138 | P3: =P2+LeftMajor -> 1 | Q3: =WORKDAY(Q2,LeftMajor) -> 2023-07-12 | AB3: Whole Project | AC3: =AI1-AE1 ->  | AD3: =NETWORKDAYS(AG1,DateRun)-1 -> -55 | AE3: =AC3/AD3 ->  | AF3: =MATCH(TRUE,APIData!$H$842<>"",0)-1 ->  | AG3: =AE1 ->  | AI3: Legend | AJ3: FALSE | AL3: y | AM3: Sheet2 | AN3: APIData
B4: Max | C4: =MAX(F4:F10) -> 53 | D4: =BufferDays+AboveBufferChartDays -> 14 | F4: =-0.1 -> -0.1 | G4: =ProjectStartDate-0.01 -> 45062.99 | H4: 0 | I4: =GreenOnDay0-((BufferDays-GreenOnDay0-RedOnLastDay-WarningSize)/(BufferEndDate-ProjectStartDate)) -> 1.893333333 | J4: =I4+WarningSize -> 3.893333333 | K4: =VALUE(BufferDays) -> 14 | L4: 1000 | N4: =N3 -> 53 | O4: =BufferEndDate+AboveBufferChartDays -> 45138 | P4: 2 | Q4: 2023-07-13 | AC4: =WORKDAY(DateRun,(NETWORKDAYS(DateRun,ProjectUnBufferredEndDate)-1)/(1-AE3)) ->  | AF4: =$AC$1 -> 1 | AG4: =INDEX(APIData!$N$1:$N$842,TodayRow,0) -> Latest Milestone | AI4: Finish Line | AJ4: TRUE | AL4: y | AM4: Sheet3 | AN4: Formatting
B5: Min | C5: =0 -> 0 | D5: =-BelowZeroChartDays -> 0 | F5: =NETWORKDAYS(ProjectStartDate,BufferEndDate)-1 -> 53 | G5: =BufferEndDate+AboveBufferChartDays -> 45138 | H5: 0 | I5: =BufferDays-RedOnLastDay-WarningSize -> 10 | J5: =I5+WarningSize -> 12 | K5: 14 | L5: 1000 | N5: 53 | O5: =BufferEndDate+AboveBufferChartDays -> 45138 | P5: 3 | Q5: 2023-07-14 | AC5: =WORKDAY(ProjectStartDate,(INTERCEPT(AG3:AG4,AF3:AF4)-INTERCEPT(D27:D28,C27:C28))/((SLOPE(D27:D28,C27:C28)-SLOPE(AG3:AG4,AF3:AF4)))) ->  | AF5: =IF(SLOPE($D$27:$D$28,$C$27:$C$28)>SLOPE(AG3:AG4,AF3:AF4),(INTERCEPT(AG3:AG4,AF3:AF4)-INTERCEPT($D$27:$D$28,$C$27:$C$28)) / ((SLOPE($D$27:$D$28,$C$27:$C$28)-SLOPE(AG3:AG4,AF3:AF4))),$C$28) ->  | AG5: =$AG$4 + (AF5-$AF$4)*AE3 ->  | AH5: =CONCATENATE(AB3," Trajectory (",TEXT(AC4,DateFormatText),")") ->  | AL5: y | AM5: Sheet4 | AN5: MainData
B6: Crosses | C6: =0 -> 0 | D6: =-BelowZeroChartDays -> 0 | F6: =F5+AboveBufferChartDays -> 53 | G6: =BufferEndDate+AboveBufferChartDays -> 45138 | H6: 0 | I6: =I5 -> 10 | J6: =I6+WarningSize -> 12 | K6: 14 | L6: 1000 | N6: 53 | O6: =BufferEndDate+AboveBufferChartDays -> 45138 | P6: 4 | Q6: 2023-07-17
B7: Major Axes | C7: 5 | D7: =ROUNDUP((LeftMax-LeftMin)/20,0) -> 1 | F7: =F6 -> 53 | G7: =BufferEndDate+AboveBufferChartDays -> 45138 | H7: 0 | I7: =I6 -> 10 | J7: =J6 -> 12 | K7: 14 | L7: =L6 -> 1000 | N7: 53 | O7: =BufferEndDate+AboveBufferChartDays -> 45138 | P7: 5 | Q7: 2023-07-18 | AB7: =Chart!K5 -> 5 | AC7: =$AI$1-INDEX(MainData!$N$58:$N$842,MATCH(MAX($AG$1,WORKDAY(DateRun,-AB7)),MainData!$A$5:$A$842,0),0) -> 0 | AD7: =AB7 -> 5 | AE7: =AC7/AD7 -> 0 | AF7: =MAX(0,$AC$1-AD7) -> 0 | AG7: =INDEX(MainData!$N$58:$N$842,MATCH(AF7,MainData!$B$2:$B$842,0),0) -> 0
C8: =CHOOSE(ROUND((NETWORKDAYS(ProjectStartDate,BufferEndDate)-1)/40,0),5,5,5,10,10,20,20,20,20,20,20,20,20,20,20,40,40,40,40,40,40) | D8: =CHOOSE(ROUNDUP((LeftMax-LeftMin)/20,0),1,1,5,5,5,10,20,20,20,20,20,20,20,20,20,20,20,20) | F8: =F7 -> 53 | G8: =BufferEndDate+AboveBufferChartDays -> 45138 | H8: 0 | I8: =I7 -> 10 | J8: 12 | K8: 14 | L8: 1000 | N8: 53 | O8: =BufferEndDate+AboveBufferChartDays -> 45138 | P8: 6 | Q8: 2023-07-19 | AC8: =WORKDAY(DateRun,ROUNDUP((NETWORKDAYS(DateRun,ProjectUnBufferredEndDate)-1)/(1-AE7),0)) ->  | AF8: =$AC$1 -> 1 | AG8: =VLOOKUP(9999,MainData!$A$1:$CK$357,5,FALSE) -> 
A9: Buffer End Line | B9: Buffer End | C9: =NETWORKDAYS(ProjectStartDate,BufferEndDate)-1 -> 53 | D9: =D5 -> 0 | F9: 53 | G9: =BufferEndDate+AboveBufferChartDays -> 45138 | H9: 0 | I9: 10 | J9: 12 | K9: 14 | L9: 1000 | N9: 53 | O9: =BufferEndDate+AboveBufferChartDays -> 45138 | P9: 7 | Q9: 2023-07-20 | AF9: =IF(SLOPE($D$27:$D$28,$C$27:$C$28)>SLOPE(AG7:AG8,AF7:AF8),(INTERCEPT(AG7:AG8,AF7:AF8)-INTERCEPT($D$27:$D$28,$C$27:$C$28)) / ((SLOPE($D$27:$D$28,$C$27:$C$28)-SLOPE(AG7:AG8,AF7:AF8))),$C$28) ->  | AG9: =$AG$8 + (AF9-$AF$8)*($AG$8-$AG$7)/($AF$8-$AF$7) ->  | AH9: =CONCATENATE(AB7," Day Trajectory (",IFERROR(TEXT(AC8,DateFormatText),""),")") -> 5 Day Trajectory ()
C10: =NETWORKDAYS(ProjectStartDate,BufferEndDate)-1 -> 53 | D10: =D4 -> 14 | F10: 53 | G10: =BufferEndDate+AboveBufferChartDays -> 45138 | H10: 0 | I10: 10 | J10: 12 | K10: 14 | L10: 1000 | N10: 53 | O10: =BufferEndDate+AboveBufferChartDays -> 45138 | P10: 8 | Q10: 2023-07-21
F11: 53 | G11: =BufferEndDate+AboveBufferChartDays -> 45138 | H11: 0 | I11: 10 | J11: 12 | K11: 14 | L11: 1000 | N11: 53 | O11: =BufferEndDate+AboveBufferChartDays -> 45138 | P11: 9 | Q11: 2023-07-24 | AB11: =Chart!K6 -> 10 | AC11: =$AI$1-INDEX(MainData!$N$58:$N$842,MATCH(MAX($AG$1,WORKDAY(DateRun,-AB11)),MainData!$A$5:$A$842,0),0) -> 0 | AD11: =AB11 -> 10 | AE11: =AC11/AD11 -> 0 | AF11: =$AC$1-AD11 -> -9 | AG11: =INDEX(MainData!$N$58:$N$842,MATCH(AF11,MainData!$B$2:$B$842,0),0) -> 
B12: Date Format Text | C12: m/d/yyyy | F12: 53 | G12: =BufferEndDate+AboveBufferChartDays -> 45138 | H12: 0 | I12: 10 | J12: 12 | K12: 14 | L12: 1000 | N12: 53 | O12: =BufferEndDate+AboveBufferChartDays -> 45138 | P12: 10 | Q12: 2023-07-25 | AC12: =WORKDAY(DateRun,ROUNDUP((NETWORKDAYS(DateRun,ProjectUnBufferredEndDate)-1)/(1-AE11),0)) ->  | AF12: =$AC$1 -> 1 | AG12: =VLOOKUP(9999,MainData!$A$1:$CK$357,5,FALSE) -> 
F13: 53 | G13: =BufferEndDate+AboveBufferChartDays -> 45138 | H13: 0 | I13: 10 | J13: 12 | K13: 14 | L13: 1000 | N13: 53 | O13: =BufferEndDate+AboveBufferChartDays -> 45138 | P13: 11 | Q13: 2023-07-26 | AF13: =IF(SLOPE($D$27:$D$28,$C$27:$C$28)>SLOPE(AG11:AG12,AF11:AF12),(INTERCEPT(AG11:AG12,AF11:AF12)-INTERCEPT($D$27:$D$28,$C$27:$C$28)) / ((SLOPE($D$27:$D$28,$C$27:$C$28)-SLOPE(AG11:AG12,AF11:AF12))),$C$28) ->  | AG13: =$AG$12 + (AF13-$AF$12)*($AG$12-$AG$11)/($AF$12-$AF$11) ->  | AH13: =CONCATENATE(AB11," Day Trajectory (",IFERROR(TEXT(AC12,DateFormatText),""),")") -> 10 Day Trajectory ()
B14: pace car point | F14: 53 | G14: =BufferEndDate+AboveBufferChartDays -> 45138 | H14: 0 | I14: 10 | J14: 12 | K14: 14 | L14: 1000 | N14: 53 | O14: =BufferEndDate+AboveBufferChartDays -> 45138 | P14: 12 | Q14: 2023-07-27 | AA14: =IFERROR(INDEX(SeriesNames,SMALL(IF(LEN(SeriesNames)>1,ROW(SeriesNames)-3),ROW(14:14)-3),1),"") -> 
B15: =NETWORKDAYS(BufferStartDate,GreenYellowDate) -> 2 | F15: 53 | G15: =BufferEndDate+AboveBufferChartDays -> 45138 | H15: 0 | I15: 10 | J15: 12 | K15: 14 | L15: 1000 | N15: 53 | O15: =BufferEndDate+AboveBufferChartDays -> 45138 | P15: 13 | Q15: 2023-07-28 | AA15: =IFERROR(INDEX(SeriesNames,SMALL(IF(LEN(SeriesNames)>1,ROW(SeriesNames)-3),ROW(15:15)-3),1),"") ->  | AB15: =NETWORKDAYS(MAX(Chart!K7,ProjectStartDate),DateRun)-1 -> 1506 | AC15: =$AI$1-INDEX(MainData!$N$58:$N$842,MATCH(MAX($AG$1,WORKDAY(DateRun,-AB15)),MainData!$A$5:$A$842,0),0) -> 0 | AD15: =AB15 -> 1506 | AE15: =AC15/AD15 -> 0 | AF15: =$AC$1-AD15 -> -1505 | AG15: =INDEX(MainData!$E$2:$E$842,MATCH(AF15,MainData!$C$2:$C$842,0),0) -> 
B16: dateRunFormatted | C16: =TEXT(DATEVALUE(DateRun),DateFormatText) & " " & TEXT(TIMEVALUE(DateRun),"HH:MM") -> 5/17/2023 16:44 | F16: 53 | G16: =BufferEndDate+AboveBufferChartDays -> 45138 | H16: 0 | I16: 10 | J16: 12 | K16: 14 | L16: 1000 | N16: 53 | O16: =BufferEndDate+AboveBufferChartDays -> 45138 | P16: 14 | Q16: 2023-07-31 | AA16: =IFERROR(INDEX(SeriesNames,SMALL(IF(LEN(SeriesNames)>1,ROW(SeriesNames)-3),ROW(16:16)-3),1),"") ->  | AC16: =WORKDAY(DateRun,ROUNDUP((NETWORKDAYS(DateRun,ProjectUnBufferredEndDate)-1)/(1-AE15),0)) ->  | AF16: =$AC$1 -> 1 | AG16: =VLOOKUP(9999,MainData!$A$1:$CK$357,5,FALSE) -> 
B17: todayrow | C17: =IF(MATCH(DATEVALUE(LEFT(DateRun,10)), MainData[Reporting Date], 1)=1,2,MATCH(DATEVALUE(LEFT(DateRun,10)), MainData[Reporting Date], 1)+1) -> 2 | F17: 53 | G17: =BufferEndDate+AboveBufferChartDays -> 45138 | H17: 0 | I17: 10 | J17: 12 | K17: 14 | L17: 1000 | N17: 53 | O17: =BufferEndDate+AboveBufferChartDays -> 45138 | P17: 15 | Q17: 2023-08-01 | AA17: =IFERROR(INDEX(SeriesNames,SMALL(IF(LEN(SeriesNames)>1,ROW(SeriesNames)-3),ROW(17:17)-3),1),"") ->  | AF17: =IF(SLOPE($D$27:$D$28,$C$27:$C$28)>SLOPE(AG15:AG16,AF15:AF16),(INTERCEPT(AG15:AG16,AF15:AF16)-INTERCEPT($D$27:$D$28,$C$27:$C$28)) / ((SLOPE($D$27:$D$28,$C$27:$C$28)-SLOPE(AG15:AG16,AF15:AF16))),$C$28) ->  | AG17: =$AG$16 + (AF17-$AF$16)*($AG$16-$AG$15)/($AF$16-$AF$15) ->  | AH17: =CONCATENATE("Trajectory From ",IFERROR(TEXT(Chart!K7,DateFormatText),"")," (",IFERROR(TEXT(AC16,DateFormatText),""),")") -> Trajectory From 8/8/2017 ()
B18: APICall | C18: APIBufferReport2b | F18: 53 | G18: =BufferEndDate+AboveBufferChartDays -> 45138 | H18: 0 | I18: 10 | J18: 12 | K18: 14 | L18: 1000 | N18: 53 | O18: =BufferEndDate+AboveBufferChartDays -> 45138 | P18: 16 | Q18: 2023-08-02 | AA18: =IFERROR(INDEX(SeriesNames,SMALL(IF(LEN(SeriesNames)>1,ROW(SeriesNames)-3),ROW(18:18)-3),1),"") -> 
F19: 53 | G19: =BufferEndDate+AboveBufferChartDays -> 45138 | H19: 0 | I19: 10 | J19: 12 | K19: 14 | L19: 1000 | N19: 53 | O19: =BufferEndDate+AboveBufferChartDays -> 45138 | P19: 17 | Q19: 2023-08-03 | AA19: =IFERROR(INDEX(SeriesNames,SMALL(IF(LEN(SeriesNames)>1,ROW(SeriesNames)-3),ROW(19:19)-3),1),"") -> 
F20: 53 | G20: =BufferEndDate+AboveBufferChartDays -> 45138 | H20: 0 | I20: 10 | J20: 12 | K20: 14 | L20: 1000 | N20: 53 | O20: =BufferEndDate+AboveBufferChartDays -> 45138 | P20: 18 | Q20: 2023-08-04 | AA20: =IFERROR(INDEX(SeriesNames,SMALL(IF(LEN(SeriesNames)>1,ROW(SeriesNames)-3),ROW(20:20)-3),1),"") -> 
B21: Completion Target Date | C21: =WORKDAY(BufferEndDate,1) -> 2023-08-01 | F21: 53 | G21: =BufferEndDate+AboveBufferChartDays -> 45138 | H21: 0 | I21: 10 | J21: 12 | K21: 14 | L21: 1000 | N21: 53 | O21: =BufferEndDate+AboveBufferChartDays -> 45138 | P21: 19 | Q21: 2023-08-07 | AA21: =IFERROR(INDEX(SeriesNames,SMALL(IF(LEN(SeriesNames)>1,ROW(SeriesNames)-3),ROW(21:21)-3),1),"") -> 
F22: 53 | G22: =BufferEndDate+AboveBufferChartDays -> 45138 | H22: 0 | I22: 10 | J22: 12 | K22: 14 | L22: 1000 | N22: 53 | O22: =BufferEndDate+AboveBufferChartDays -> 45138 | P22: 20 | Q22: 2023-08-08 | AA22: =IFERROR(INDEX(SeriesNames,SMALL(IF(LEN(SeriesNames)>1,ROW(SeriesNames)-3),ROW(22:22)-3),1),"") ->  | AI22: Buffer End Line | AJ22: TRUE
F23: 53 | G23: =BufferEndDate+AboveBufferChartDays -> 45138 | H23: 0 | I23: 10 | J23: 12 | K23: 14 | L23: 1000 | N23: 53 | O23: =BufferEndDate+AboveBufferChartDays -> 45138 | P23: 21 | Q23: 2023-08-09 | AA23: =IFERROR(INDEX(SeriesNames,SMALL(IF(LEN(SeriesNames)>1,ROW(SeriesNames)-3),ROW(23:23)-3),1),"") ->  | AI23: Whole Project Trajectory | AJ23: FALSE
A24: Finish Line 2010 | B24: Intersection Line | C24: =WORKDAY(BufferStartDate,-1)+LeftMin -> 45118 | D24: =D27 -> 0 | F24: 53 | G24: =BufferEndDate+AboveBufferChartDays -> 45138 | H24: 0 | I24: 10 | J24: 12 | K24: 14 | L24: 1000 | N24: 53 | O24: =BufferEndDate+AboveBufferChartDays -> 45138 | P24: 22 | Q24: 2023-08-10 | AA24: =IFERROR(INDEX(SeriesNames,SMALL(IF(LEN(SeriesNames)>1,ROW(SeriesNames)-3),ROW(24:24)-3),1),"") ->  | AI24: Min Trajectory | AJ24: FALSE
C25: =BufferEndDate+AboveBufferChartDays -> 45138 | D25: =D10 -> 14 | E25: =C25 -> 2023-07-31 | F25: 53 | G25: =BufferEndDate+AboveBufferChartDays -> 45138 | H25: 0 | I25: 10 | J25: 12 | K25: 14 | L25: 1000 | N25: 53 | O25: =BufferEndDate+AboveBufferChartDays -> 45138 | P25: 23 | Q25: 2023-08-11 | V25: =IF(U25="","",VLOOKUP(U25,SeriesAll,2,FALSE)) ->  | AA25: =IFERROR(INDEX(SeriesNames,SMALL(IF(LEN(SeriesNames)>1,ROW(SeriesNames)-3),ROW(25:25)-3),1),"") ->  | AI25: Max Trajectory | AJ25: FALSE
F26: 53 | G26: =BufferEndDate+AboveBufferChartDays -> 45138 | H26: 0 | I26: 10 | J26: 12 | K26: 14 | L26: 1000 | N26: 53 | O26: =BufferEndDate+AboveBufferChartDays -> 45138 | P26: 24 | Q26: 2023-08-14 | AI26: Specific Date Trajectory | AJ26: FALSE
A27: Finish Line 2013 | B27: Intersection Line | C27: =NETWORKDAYS(ProjectStartDate,WORKDAY(BufferStartDate,-1))+LeftMin -> 40 | D27: =D5 -> 0 | F27: 53 | G27: =BufferEndDate+AboveBufferChartDays -> 45138 | H27: 0 | I27: 10 | J27: 12 | K27: 14 | L27: 1000
C28: =xMax -> 53 | D28: =D10 -> 14 | F28: 53 | G28: =BufferEndDate+AboveBufferChartDays -> 45138 | H28: 0 | I28: 10 | J28: 12 | K28: 14 | L28: 1000 | AJ28: report types | AM28: Finish Task Designation | AN28: instructions? | AO28: has instructions? | AR28: Tracks to Chart | AS28: instructions? | AT28: has instructions?
F29: 53 | G29: =BufferEndDate+AboveBufferChartDays -> 45138 | H29: 0 | I29: 10 | J29: 12 | K29: 14 | L29: 1000 | AJ29: Designated Milestone/Task | AK29: Designated Milestones/Tasks | AL29: in same project as buffer | AM29: The Major Milestone in Same Summary as Buffer Task | AN29: to the description of the buffer task and milestones/tasks to track in the chart | AO29: TRUE | AP29: 1 | AR29: Designated Milestones/Tasks | AS29: to the description of the buffer task and milestones/tasks to track in the chart | AT29: TRUE | AU29: 1 | AW29: in same project as buffer | AY29: 1
F30: 53 | G30: =BufferEndDate+AboveBufferChartDays -> 45138 | H30: 0 | I30: 10 | J30: 12 | K30: 14 | L30: 1000 | AD30: =WORKDAY(DateRun,ROUND((NETWORKDAYS(DateRun,ProjectUnBufferredEndDate))/(1-AE3),0)) ->  | AJ30: =VLOOKUP(AJ29,AM29:AP33,4,FALSE) -> 2 | AK30: =VLOOKUP(AK29,AR29:AU33,4,FALSE) -> 1 | AL30: =VLOOKUP(AL29,AW29:AZ33,3,FALSE) -> 1 | AM30: Designated Milestone/Task | AN30: to the description of the buffer task and milestones/tasks to track in the chart | AO30: TRUE | AP30: 2 | AR30: A designated task and its direct predecessors | AS30: to the description of the buffer task and milestones/tasks to track in the chart | AT30: TRUE | AU30: 2 | AW30: in same summary task as buffer | AY30: 2
F31: 53 | G31: =BufferEndDate+AboveBufferChartDays -> 45138 | H31: 0 | I31: 10 | J31: 12 | K31: 14 | L31: 1000 | P31: 0.1 | AR31: its furthest upstream queued predecessors | AT31: TRUE | AU31: 3 | AW31: anywhere | AY31: 3
F32: 53 | G32: =BufferEndDate+AboveBufferChartDays -> 45138 | H32: 0 | I32: 10 | J32: 12 | K32: 14 | L32: 1000 | N32: =Xmin -> 0 | P32: =LeftMin+$P$31 -> 0.1 | Q32: =WORKDAY(APIData!F3,N32) -> 2023-05-17
B33: MaxDaysAboveBuffer | C33: -14 | D33: =MAX(0,IFERROR(MAX(Data!$E$5:$E$999,Data!$G$5:$G$999,Data!$I$5:I999,Data!K5:K999,Data!M5:M999,Data!O5:O999,Data!Q5:Q999,Data!S5:SG999,Data!U5:U999,Data!W5:W999,Data!Y5:Y999,Data!AA5:AA999,Data!AC5:AC999,Data!AE5:AE999,Data!AG5:AG999,Data!AI5:AIK999,Data!AK5:AK999,Data!AM5:AM999,Data!AO5:AO999,Data!AQ5:AQ999)-BufferDays,0)) | F33: 53 | G33: =BufferEndDate+AboveBufferChartDays -> 45138 | H33: 0 | I33: 10 | J33: 12 | K33: 14 | L33: 1000 | N33: =N32+XMajor -> 5 | P33: 0.1 | Q33: =WORKDAY(ProjectStartDate,N33) -> 2023-05-24 | AL33: Cloud server | AM33: canceled
B34: MinDaysBelowZero | C34: 0 | F34: 53 | G34: =BufferEndDate+AboveBufferChartDays -> 45138 | H34: 0 | I34: 10 | J34: 12 | K34: 14 | L34: 1000 | N34: 10 | P34: 0.1 | Q34: =WORKDAY(ProjectStartDate,N34) -> 2023-05-31 | AK34: ConnectionInfo | AL34: =IF(ISERROR(SEARCH("Cloud",AL33)),TRUE,FALSE) -> FALSE | AM34: FALSE
B35: BelowZeroValue | C35: auto | F35: 53 | G35: =BufferEndDate+AboveBufferChartDays -> 45138 | H35: 0 | I35: 10 | J35: 12 | K35: 14 | L35: 1000 | N35: 15 | P35: 0.1 | Q35: =WORKDAY(ProjectStartDate,N35) -> 2023-06-07 | AK35: Site Name | AL35: reportsdev | AM35: reportsdev
B36: AboveBufferValue | C36: auto | D36: ' | F36: 53 | G36: =BufferEndDate+AboveBufferChartDays -> 45138 | H36: 0 | I36: 10 | J36: 12 | K36: 14 | L36: 1000 | N36: 20 | P36: 0.1 | Q36: =WORKDAY(ProjectStartDate,N36) -> 2023-06-14 | AM36: bearer k-_wWA5VMkwgRWarKKqkTM-Iykc1NB--kdPpHMvBM0RNLaf7snK9na9peHGGXPUWVu8RmXd3yR7byQllfwnqlRItQGAkmAUlamFzU_no_aL8v0RXBadmKpx28QpxtsRgwlMKnFPCa8Lu3UHSjrnGGB0T522nWaGUHBOz67nv8u-fmDPlSIgMZfVAfNt2kKYbBMD5VB57tqVNemWgyROj_7bHIjetlaGuUEXSRvIRu_x3zWARcPmwGcY3Zv9Y4xzBIQbJBh-1p_FSZ7HntHYf_eBh5Q8DooF1N8qIhnszchJiLF1_SVX1ns0qQzksIRCf0zsA_ozjl_PaLD5QsVfe8KU66i4PV-xfOVzEkrB_AiPNgYGbaYYdfR4gEgrYKYn8fU0qgrtSdjRJbXEyTp-VlH6fGKntlg5XTSzqBDx9rm8KNEzT1MY9xu5PT0LyV5yN57CFITx4Hb1gWgep1T_Yi0lOnYgWzePl-xZl9jdR6oCWiDfXLjpVArJrV7b6-qW6NKcNOEMv8TqXNpRpqNtKcLhntQjvu3Um3F4N-hMAWbCILSW_P6eT4g6xyOKZQ7hgbdDNwdRHu382DXxplDcsf3Vs4XxYMaiacd-JUApJcH6MO2A4XSdTFLE_ylwHOxcc35turkNpcwkQXRz8tYvzJMesD1ZB2kYMX0IBZeRoW3k1Vw1EhOUQx5tivNOfeR_SUII9slIBZ_ZN0E_Ui3mkMuX1_FfeJMH1egxNCZDUEZmFVSGNJbeEdP-I2F2SnSW0EdbwvAPdqsG_cz8MdfOlVMu_DmAW3_nRWwu0l84v4D-MPDDfC4mHNwvZ5t6wXnqLmm6JCo2E1uUmyzC8BnAyi0dFMxSlFbu62-Pcw5rIZGuiFzMmMTCp6-JPHd4fE-cUquZuA6YVDj-AHmLUS4MjZAmya-NeaC7mu8egfqp4doZ-OJC_yuzwdmzmFPTkTuetJl7R4w-UpAJjmALKih5g3w
A37: Excel Versions | B37: 2010- | C37: 1 | F37: 53 | G37: =BufferEndDate+AboveBufferChartDays -> 45138 | H37: 0 | I37: 10 | J37: 12 | K37: 14 | L37: 1000 | N37: 25 | P37: 0.1 | Q37: =WORKDAY(ProjectStartDate,N37) -> 2023-06-21 | AK37: FoundSite | AL37: FoundCode
A38: 2013+ | B38: 2013+ | C38: 2 | F38: 53 | G38: =BufferEndDate+AboveBufferChartDays -> 45138 | H38: 0 | I38: 10 | J38: 12 | K38: 14 | L38: 1000 | N38: 30 | P38: 0.1 | Q38: =WORKDAY(ProjectStartDate,N38) -> 2023-06-28 | AK38: 1 | AL38: 1
A39: =VLOOKUP(A38,B37:C38,2,FALSE) -> 2 | F39: 53 | G39: =BufferEndDate+AboveBufferChartDays -> 45138 | H39: 0 | I39: 10 | J39: =J38 -> 12 | K39: 14 | L39: =L38 -> 1000 | N39: 35 | P39: 0.1 | Q39: =WORKDAY(ProjectStartDate,N39) -> 2023-07-05 | AK39: reportUsage | AL39: TRUE | AM39: TRUE
C40: 1.2 | F40: 53 | G40: =BufferEndDate+AboveBufferChartDays -> 45138 | H40: 0 | I40: 10 | J40: 12 | K40: 14 | L40: 1000 | N40: 40 | P40: 0.1 | Q40: =WORKDAY(ProjectStartDate,N40) -> 2023-07-12 | AO40: accuer | AP40: 0 | AQ40: TRUE
B41: DecimalChar | C41: =LEFT(RIGHT(C40,2),1) -> . | F41: 53 | G41: =BufferEndDate+AboveBufferChartDays -> 45138 | H41: 0 | I41: 10 | J41: 12 | K41: 14 | L41: 1000 | N41: 45 | P41: 0.1 | Q41: =WORKDAY(ProjectStartDate,N41) -> 2023-07-19
F42: 53 | G42: =BufferEndDate+AboveBufferChartDays -> 45138 | H42: 0 | I42: 10 | J42: 12 | K42: 14 | L42: 1000 | N42: 50 | P42: 0.1 | Q42: =WORKDAY(ProjectStartDate,N42) -> 2023-07-26
F43: 53 | G43: =BufferEndDate+AboveBufferChartDays -> 45138 | H43: 0 | I43: 10 | J43: 12 | K43: 14 | L43: 1000 | N43: 55 | P43: 0.1 | Q43: =WORKDAY(ProjectStartDate,N43) -> 2023-08-02
B44: LegendLeft | C44: 405.04 | F44: 53 | G44: =BufferEndDate+AboveBufferChartDays -> 45138 | H44: 0 | I44: 10 | J44: 12 | K44: 14 | L44: 1000 | N44: 60 | P44: 0.1 | Q44: =WORKDAY(ProjectStartDate,N44) -> 2023-08-09
B45: LegendTop | C45: 271.7326772 | F45: 53 | G45: =BufferEndDate+AboveBufferChartDays -> 45138 | H45: 0 | I45: 10 | J45: 12 | K45: 14 | L45: 1000 | N45: 65 | P45: 0.1 | Q45: =WORKDAY(ProjectStartDate,N45) -> 2023-08-16 | AK45: ServerTypes | AL45: Cloud server
B46: LegendWidth | C46: 228.6070079 | F46: 53 | G46: =BufferEndDate+AboveBufferChartDays -> 45138 | H46: 0 | I46: 10 | J46: 12 | K46: 14 | L46: 1000 | N46: 70 | P46: 0.1 | Q46: =WORKDAY(ProjectStartDate,N46) -> 2023-08-23 | AL46: Local company server
F47: 53 | G47: =BufferEndDate+AboveBufferChartDays -> 45138 | H47: 0 | I47: 10 | J47: 12 | K47: 14 | L47: 1000 | N47: 75 | P47: 0.1 | Q47: =WORKDAY(ProjectStartDate,N47) -> 2023-08-30
F48: 53 | G48: =BufferEndDate+AboveBufferChartDays -> 45138 | H48: 0 | I48: 10 | J48: 12 | K48: 14 | L48: 1000 | N48: 80 | P48: 0.1 | Q48: =WORKDAY(ProjectStartDate,N48) -> 2023-09-06
B49: OldBufferName | F49: 53 | G49: =BufferEndDate+AboveBufferChartDays -> 45138 | H49: 0 | I49: 10 | J49: 12 | K49: 14 | L49: 1000 | N49: 85 | P49: 0.1 | Q49: =WORKDAY(ProjectStartDate,N49) -> 2023-09-13
F50: 53 | G50: =BufferEndDate+AboveBufferChartDays -> 45138 | H50: 0 | I50: 10 | J50: 12 | K50: 14 | L50: 1000 | N50: 90 | P50: 0.1 | Q50: =WORKDAY(ProjectStartDate,N50) -> 2023-09-20
F51: 53 | G51: =BufferEndDate+AboveBufferChartDays -> 45138 | H51: 0 | I51: 10 | J51: 12 | K51: 14 | L51: 1000 | N51: 95 | P51: 0.1 | Q51: =WORKDAY(ProjectStartDate,N51) -> 2023-09-27
A52: ColorVeryGood | F52: 53 | G52: =BufferEndDate+AboveBufferChartDays -> 45138 | H52: 0 | I52: 10 | J52: 12 | K52: 14 | L52: 1000 | N52: 100 | P52: 0.1 | Q52: =WORKDAY(ProjectStartDate,N52) -> 2023-10-04
A53: ColorGood | F53: 53 | G53: =BufferEndDate+AboveBufferChartDays -> 45138 | H53: 0 | I53: 10 | J53: 12 | K53: 14 | L53: 1000 | N53: 105 | P53: 0.1 | Q53: =WORKDAY(ProjectStartDate,N53) -> 2023-10-11
A54: ColorWarning | F54: 53 | G54: =BufferEndDate+AboveBufferChartDays -> 45138 | H54: 0 | I54: 10 | J54: 12 | K54: 14 | L54: 1000 | N54: 110 | P54: 0.1 | Q54: =WORKDAY(ProjectStartDate,N54) -> 2023-10-18
A55: ColorBad | F55: 53 | G55: =BufferEndDate+AboveBufferChartDays -> 45138 | H55: 0 | I55: 10 | J55: 12 | K55: 14 | L55: 1000 | N55: 115 | P55: 0.1 | Q55: =WORKDAY(ProjectStartDate,N55) -> 2023-10-25
A56: ColorVeryBad | F56: 53 | G56: =BufferEndDate+AboveBufferChartDays -> 45138 | H56: 0 | I56: 10 | J56: 12 | K56: 14 | L56: 1000 | N56: 120 | P56: 0.1 | Q56: =WORKDAY(ProjectStartDate,N56) -> 2023-11-01
F57: 53 | G57: =BufferEndDate+AboveBufferChartDays -> 45138 | H57: 0 | I57: 10 | J57: 12 | K57: 14 | L57: 1000 | N57: 125 | P57: 0.1 | Q57: =WORKDAY(ProjectStartDate,N57) -> 2023-11-08
F58: 53 | G58: =BufferEndDate+AboveBufferChartDays -> 45138 | H58: 0 | I58: 10 | J58: 12 | K58: 14 | L58: 1000 | N58: 130 | P58: 0.1 | Q58: =WORKDAY(ProjectStartDate,N58) -> 2023-11-15
B59: let Source = Json.Document(Web.Contents("##Site", [ RelativePath="3.0_Services/api/##APICall/Get", Query= [ ReportName=Uri.EscapeDataString("##ReportName"), StepSize="##StepSize", Wf="##Wf", Wt="##Wt", Ws="##Ws", calledBy="API", TimeZone=#"Time Zone", output="all2", login="##username" ], Headers=[Authorization="##Key"]])), #"Converted to Table" = Table.FromList(Source, Splitter.SplitByNothing(), null, null, ExtraValues.Error), #"Expanded Column1" = Table.ExpandRecordColumn(#"Converted to Table", "Column1", Table.ColumnNames(Table.FromRecords(List.Select(Table.Column(#"Converted to Table","Column1"),each _ <> null and _ <> ""))),Table.ColumnNames(Table.FromRecords(Table.Column(#"Converted to Table","Column1")))) in #"Expanded Column1" | F59: 53 | G59: =BufferEndDate+AboveBufferChartDays -> 45138 | H59: 0 | I59: 10 | J59: 12 | K59: 14 | L59: 1000 | N59: 135 | P59: 0.1 | Q59: =WORKDAY(ProjectStartDate,N59) -> 2023-11-22
F60: 53 | G60: =BufferEndDate+AboveBufferChartDays -> 45138 | H60: 0 | I60: 10 | J60: 12 | K60: 14 | L60: 1000 | N60: 140 | P60: 0.1 | Q60: =WORKDAY(ProjectStartDate,N60) -> 2023-11-29
B61: let Source = Json.Document(Web.Contents("##Site", [ RelativePath="api/api/##APICall", Query= [ Username=Uri.EscapeDataString("##Username"), Password=Uri.EscapeDataString("##Password") ], Headers=[Authorization="##Key"]])), #"Converted to Table" = #table(1, {{Source}}) in #"Converted to Table" | F61: 53 | G61: =BufferEndDate+AboveBufferChartDays -> 45138 | H61: 0 | I61: 10 | J61: 12 | K61: 14 | L61: 1000 | N61: 145 | P61: 0.1 | Q61: =WORKDAY(ProjectStartDate,N61) -> 2023-12-06
F62: 53 | G62: =BufferEndDate+AboveBufferChartDays -> 45138 | H62: 0 | I62: 10 | J62: 12 | K62: 14 | L62: 1000 | N62: 150 | P62: 0.1 | Q62: =WORKDAY(ProjectStartDate,N62) -> 2023-12-13
F63: 53 | G63: =BufferEndDate+AboveBufferChartDays -> 45138 | H63: 0 | I63: 10 | J63: 12 | K63: 14 | L63: 1000 | N63: 155 | P63: 0.1 | Q63: =WORKDAY(ProjectStartDate,N63) -> 2023-12-20
F64: 53 | G64: =BufferEndDate+AboveBufferChartDays -> 45138 | H64: 0 | I64: 10 | J64: 12 | K64: 14 | L64: 1000 | N64: 160 | P64: =LeftMin+$P$31 -> 0.1 | Q64: =WORKDAY(ProjectStartDate,N64) -> 2023-12-27
F65: 53 | G65: =BufferEndDate+AboveBufferChartDays -> 45138 | H65: 0 | I65: 10 | J65: 12 | K65: 14 | L65: 1000 | N65: =N64+XMajor -> 165 | P65: 0.1 | Q65: =WORKDAY(ProjectStartDate,N65) -> 2024-01-03
F66: 53 | G66: =BufferEndDate+AboveBufferChartDays -> 45138 | H66: 0 | I66: 10 | J66: 12 | K66: 14 | L66: 1000 | N66: 170 | P66: 0.1 | Q66: =WORKDAY(ProjectStartDate,N66) -> 2024-01-10
F67: 53 | G67: =BufferEndDate+AboveBufferChartDays -> 45138 | H67: 0 | I67: 10 | J67: 12 | K67: 14 | L67: 1000 | N67: 175 | P67: 0.1 | Q67: =WORKDAY(ProjectStartDate,N67) -> 2024-01-17
F68: 53 | G68: =BufferEndDate+AboveBufferChartDays -> 45138 | H68: 0 | I68: 10 | J68: 12 | K68: =VALUE(BufferDays) -> 14 | L68: 1000 | N68: 180 | P68: 0.1 | Q68: =WORKDAY(ProjectStartDate,N68) -> 2024-01-24
F69: 53 | G69: =BufferEndDate+AboveBufferChartDays -> 45138 | H69: 0 | I69: 10 | J69: 12 | K69: 14 | L69: 1000 | N69: 185 | P69: 0.1 | Q69: =WORKDAY(ProjectStartDate,N69) -> 2024-01-31
F70: 53 | G70: =BufferEndDate+AboveBufferChartDays -> 45138 | H70: 0 | I70: 10 | J70: 12 | K70: 14 | L70: 1000 | N70: 190 | P70: 0.1 | Q70: =WORKDAY(ProjectStartDate,N70) -> 2024-02-07
F71: 53 | G71: =BufferEndDate+AboveBufferChartDays -> 45138 | H71: 0 | I71: 10 | J71: =J70 -> 12 | K71: 14 | L71: =L70 -> 1000 | N71: 195 | P71: 0.1 | Q71: =WORKDAY(ProjectStartDate,N71) -> 2024-02-14
F72: =F71 -> 53 | G72: =BufferEndDate+AboveBufferChartDays -> 45138 | H72: 0 | I72: =I71 -> 10 | J72: 12 | K72: 14 | L72: 1000 | N72: 200 | P72: 0.1 | Q72: =WORKDAY(ProjectStartDate,N72) -> 2024-02-21
F73: 53 | G73: =BufferEndDate+AboveBufferChartDays -> 45138 | H73: 0 | I73: 10 | J73: 12 | K73: 14 | L73: 1000 | N73: 205 | P73: 0.1 | Q73: =WORKDAY(ProjectStartDate,N73) -> 2024-02-28
F74: 53 | G74: =BufferEndDate+AboveBufferChartDays -> 45138 | H74: 0 | I74: 10 | J74: 12 | K74: 14 | L74: 1000 | N74: 210 | P74: 0.1 | Q74: =WORKDAY(ProjectStartDate,N74) -> 2024-03-06
F75: 53 | G75: =BufferEndDate+AboveBufferChartDays -> 45138 | H75: 0 | I75: 10 | J75: 12 | K75: 14 | L75: 1000 | N75: 215 | P75: 0.1 | Q75: =WORKDAY(ProjectStartDate,N75) -> 2024-03-13
F76: 53 | G76: =BufferEndDate+AboveBufferChartDays -> 45138 | H76: 0 | I76: 10 | J76: 12 | K76: 14 | L76: 1000 | N76: 220 | P76: 0.1 | Q76: =WORKDAY(ProjectStartDate,N76) -> 2024-03-20
F77: 53 | G77: =BufferEndDate+AboveBufferChartDays -> 45138 | H77: 0 | I77: 10 | J77: 12 | K77: 14 | L77: 1000 | N77: 225 | P77: 0.1 | Q77: =WORKDAY(ProjectStartDate,N77) -> 2024-03-27
F78: 53 | G78: =BufferEndDate+AboveBufferChartDays -> 45138 | H78: 0 | I78: 10 | J78: 12 | K78: 14 | L78: 1000 | N78: 230 | P78: 0.1 | Q78: =WORKDAY(ProjectStartDate,N78) -> 2024-04-03
F79: 53 | G79: =BufferEndDate+AboveBufferChartDays -> 45138 | H79: 0 | I79: 10 | J79: 12 | K79: 14 | L79: 1000 | N79: 235 | P79: 0.1 | Q79: =WORKDAY(ProjectStartDate,N79) -> 2024-04-10
F80: 53 | G80: =BufferEndDate+AboveBufferChartDays -> 45138 | H80: 0 | I80: 10 | J80: 12 | K80: 14 | L80: 1000 | N80: 240 | P80: 0.1 | Q80: =WORKDAY(ProjectStartDate,N80) -> 2024-04-17
F81: 53 | G81: =BufferEndDate+AboveBufferChartDays -> 45138 | H81: 0 | I81: 10 | J81: 12 | K81: 14 | L81: 1000 | N81: 245 | P81: 0.1 | Q81: =WORKDAY(ProjectStartDate,N81) -> 2024-04-24
F82: 53 | G82: =BufferEndDate+AboveBufferChartDays -> 45138 | H82: 0 | I82: 10 | J82: 12 | K82: 14 | L82: 1000 | N82: 250 | P82: 0.1 | Q82: =WORKDAY(ProjectStartDate,N82) -> 2024-05-01
F83: 53 | G83: =BufferEndDate+AboveBufferChartDays -> 45138 | H83: 0 | I83: 10 | J83: 12 | K83: 14 | L83: 1000 | N83: 255 | P83: 0.1 | Q83: =WORKDAY(ProjectStartDate,N83) -> 2024-05-08
F84: 53 | G84: =BufferEndDate+AboveBufferChartDays -> 45138 | H84: 0 | I84: 10 | J84: 12 | K84: 14 | L84: 1000 | N84: 260 | P84: 0.1 | Q84: =WORKDAY(ProjectStartDate,N84) -> 2024-05-15
F85: 53 | G85: =BufferEndDate+AboveBufferChartDays -> 45138 | H85: 0 | I85: 10 | J85: 12 | K85: 14 | L85: 1000 | N85: 265 | P85: 0.1 | Q85: =WORKDAY(ProjectStartDate,N85) -> 2024-05-22
F86: 53 | G86: =BufferEndDate+AboveBufferChartDays -> 45138 | H86: 0 | I86: 10 | J86: 12 | K86: 14 | L86: 1000 | N86: 270 | P86: 0.1 | Q86: =WORKDAY(ProjectStartDate,N86) -> 2024-05-29
F87: 53 | G87: =BufferEndDate+AboveBufferChartDays -> 45138 | H87: 0 | I87: 10 | J87: 12 | K87: 14 | L87: 1000 | N87: 275 | P87: 0.1 | Q87: =WORKDAY(ProjectStartDate,N87) -> 2024-06-05
F88: 53 | G88: =BufferEndDate+AboveBufferChartDays -> 45138 | H88: 0 | I88: 10 | J88: 12 | K88: 14 | L88: 1000 | N88: 280 | P88: 0.1 | Q88: =WORKDAY(ProjectStartDate,N88) -> 2024-06-12
F89: 53 | G89: =BufferEndDate+AboveBufferChartDays -> 45138 | H89: 0 | I89: 10 | J89: 12 | K89: 14 | L89: 1000 | N89: 285 | P89: 0.1 | Q89: =WORKDAY(ProjectStartDate,N89) -> 2024-06-19
F90: 53 | G90: =BufferEndDate+AboveBufferChartDays -> 45138 | H90: 0 | I90: 10 | J90: 12 | K90: 14 | L90: 1000 | N90: 290 | P90: 0.1 | Q90: =WORKDAY(ProjectStartDate,N90) -> 2024-06-26
F91: 53 | G91: =BufferEndDate+AboveBufferChartDays -> 45138 | H91: 0 | I91: 10 | J91: 12 | K91: 14 | L91: 1000 | N91: 295 | P91: 0.1 | Q91: =WORKDAY(ProjectStartDate,N91) -> 2024-07-03
F92: 53 | G92: =BufferEndDate+AboveBufferChartDays -> 45138 | H92: 0 | I92: 10 | J92: 12 | K92: 14 | L92: 1000 | N92: 300 | P92: 0.1 | Q92: =WORKDAY(ProjectStartDate,N92) -> 2024-07-10
F93: 53 | G93: =BufferEndDate+AboveBufferChartDays -> 45138 | H93: 0 | I93: 10 | J93: 12 | K93: 14 | L93: 1000 | N93: 305 | P93: 0.1 | Q93: =WORKDAY(ProjectStartDate,N93) -> 2024-07-17
F94: 53 | G94: =BufferEndDate+AboveBufferChartDays -> 45138 | H94: 0 | I94: 10 | J94: 12 | K94: 14 | L94: 1000 | N94: 310 | P94: 0.1 | Q94: =WORKDAY(ProjectStartDate,N94) -> 2024-07-24
F95: 53 | G95: =BufferEndDate+AboveBufferChartDays -> 45138 | H95: 0 | I95: 10 | J95: 12 | K95: 14 | L95: 1000 | N95: 315 | P95: 0.1 | Q95: =WORKDAY(ProjectStartDate,N95) -> 2024-07-31
F96: 53 | G96: =BufferEndDate+AboveBufferChartDays -> 45138 | H96: 0 | I96: 10 | J96: 12 | K96: 14 | L96: 1000 | N96: 320 | P96: 0.1 | Q96: =WORKDAY(ProjectStartDate,N96) -> 2024-08-07
F97: 53 | G97: =BufferEndDate+AboveBufferChartDays -> 45138 | H97: 0 | I97: 10 | J97: 12 | K97: 14 | L97: 1000 | N97: 325 | P97: 0.1 | Q97: =WORKDAY(ProjectStartDate,N97) -> 2024-08-14
F98: 53 | G98: =BufferEndDate+AboveBufferChartDays -> 45138 | H98: 0 | I98: 10 | J98: 12 | K98: 14 | L98: 1000 | N98: 330 | P98: 0.1 | Q98: =WORKDAY(ProjectStartDate,N98) -> 2024-08-21
F99: 53 | G99: =BufferEndDate+AboveBufferChartDays -> 45138 | H99: 0 | I99: 10 | J99: 12 | K99: 14 | L99: 1000 | N99: 335 | P99: 0.1 | Q99: =WORKDAY(ProjectStartDate,N99) -> 2024-08-28
F100: 53 | G100: =BufferEndDate+AboveBufferChartDays -> 45138 | H100: 0 | I100: 10 | J100: 12 | K100: 14 | L100: 1000 | N100: 340 | P100: 0.1 | Q100: =WORKDAY(ProjectStartDate,N100) -> 2024-09-04
F101: 53 | G101: =BufferEndDate+AboveBufferChartDays -> 45138 | H101: 0 | I101: 10 | J101: 12 | K101: 14 | L101: 1000 | N101: 345 | P101: 0.1 | Q101: =WORKDAY(ProjectStartDate,N101) -> 2024-09-11
F102: 53 | G102: =BufferEndDate+AboveBufferChartDays -> 45138 | H102: 0 | I102: 10 | J102: 12 | K102: 14 | L102: 1000 | N102: 350 | P102: 0.1 | Q102: =WORKDAY(ProjectStartDate,N102) -> 2024-09-18
F103: 53 | G103: =BufferEndDate+AboveBufferChartDays -> 45138 | H103: 0 | I103: 10 | J103: 12 | K103: 14 | L103: 1000 | N103: 355 | P103: 0.1 | Q103: =WORKDAY(ProjectStartDate,N103) -> 2024-09-25
F104: 53 | G104: =BufferEndDate+AboveBufferChartDays -> 45138 | H104: 0 | I104: =I103 -> 10 | J104: 12 | K104: 14 | L104: 1000 | N104: 360 | P104: 0.1 | Q104: =WORKDAY(ProjectStartDate,N104) -> 2024-10-02
F105: 53 | G105: =BufferEndDate+AboveBufferChartDays -> 45138 | H105: 0 | I105: 10 | J105: 12 | K105: 14 | L105: 1000 | N105: 365 | P105: 0.1 | Q105: =WORKDAY(ProjectStartDate,N105) -> 2024-10-09
F106: 53 | G106: =BufferEndDate+AboveBufferChartDays -> 45138 | H106: 0 | I106: 10 | J106: 12 | K106: 14 | L106: 1000 | N106: 370 | P106: 0.1 | Q106: =WORKDAY(ProjectStartDate,N106) -> 2024-10-16
F107: 53 | G107: =BufferEndDate+AboveBufferChartDays -> 45138 | H107: 0 | I107: 10 | J107: 12 | K107: 14 | L107: 1000 | N107: 375 | P107: 0.1 | Q107: =WORKDAY(ProjectStartDate,N107) -> 2024-10-23
F108: 53 | G108: =BufferEndDate+AboveBufferChartDays -> 45138 | H108: 0 | I108: 10 | J108: 12 | K108: 14 | L108: 1000 | N108: 380 | P108: 0.1 | Q108: =WORKDAY(ProjectStartDate,N108) -> 2024-10-30
F109: 53 | G109: =BufferEndDate+AboveBufferChartDays -> 45138 | H109: 0 | I109: 10 | J109: 12 | K109: 14 | L109: 1000 | N109: 385 | P109: 0.1 | Q109: =WORKDAY(ProjectStartDate,N109) -> 2024-11-06
F110: 53 | G110: =BufferEndDate+AboveBufferChartDays -> 45138 | H110: 0 | I110: 10 | J110: 12 | K110: 14 | L110: 1000 | N110: 390 | P110: 0.1 | Q110: =WORKDAY(ProjectStartDate,N110) -> 2024-11-13
F111: 53 | G111: =BufferEndDate+AboveBufferChartDays -> 45138 | H111: 0 | I111: 10 | J111: 12 | K111: 14 | L111: 1000 | N111: 395 | P111: 0.1 | Q111: =WORKDAY(ProjectStartDate,N111) -> 2024-11-20
F112: 53 | G112: =BufferEndDate+AboveBufferChartDays -> 45138 | H112: 0 | I112: 10 | J112: 12 | K112: 14 | L112: 1000 | N112: 400 | P112: 0.1 | Q112: =WORKDAY(ProjectStartDate,N112) -> 2024-11-27
F113: 53 | G113: =BufferEndDate+AboveBufferChartDays -> 45138 | H113: 0 | I113: 10 | J113: 12 | K113: 14 | L113: 1000 | N113: 405 | P113: 0.1 | Q113: =WORKDAY(ProjectStartDate,N113) -> 2024-12-04
F114: 53 | G114: =BufferEndDate+AboveBufferChartDays -> 45138 | H114: 0 | I114: 10 | J114: 12 | K114: 14 | L114: 1000 | N114: 410 | P114: 0.1 | Q114: =WORKDAY(ProjectStartDate,N114) -> 2024-12-11
F115: 53 | G115: =BufferEndDate+AboveBufferChartDays -> 45138 | H115: 0 | I115: 10 | J115: 12 | K115: 14 | L115: 1000 | N115: 415 | P115: 0.1 | Q115: =WORKDAY(ProjectStartDate,N115) -> 2024-12-18
F116: 53 | G116: =BufferEndDate+AboveBufferChartDays -> 45138 | H116: 0 | I116: 10 | J116: 12 | K116: 14 | L116: 1000 | N116: 420 | P116: 0.1 | Q116: =WORKDAY(ProjectStartDate,N116) -> 2024-12-25
F117: 53 | G117: =BufferEndDate+AboveBufferChartDays -> 45138 | H117: 0 | I117: 10 | J117: 12 | K117: 14 | L117: 1000 | N117: 425 | P117: 0.1 | Q117: =WORKDAY(ProjectStartDate,N117) -> 2025-01-01
F118: 53 | G118: =BufferEndDate+AboveBufferChartDays -> 45138 | H118: 0 | I118: 10 | J118: 12 | K118: 14 | L118: 1000 | N118: 430 | P118: 0.1 | Q118: =WORKDAY(ProjectStartDate,N118) -> 2025-01-08
F119: 53 | G119: =BufferEndDate+AboveBufferChartDays -> 45138 | H119: 0 | I119: 10 | J119: 12 | K119: 14 | L119: 1000 | N119: 435 | P119: 0.1 | Q119: =WORKDAY(ProjectStartDate,N119) -> 2025-01-15
F120: 53 | G120: =BufferEndDate+AboveBufferChartDays -> 45138 | H120: 0 | I120: 10 | J120: 12 | K120: 14 | L120: 1000 | N120: 440 | P120: 0.1 | Q120: =WORKDAY(ProjectStartDate,N120) -> 2025-01-22
F121: 53 | G121: =BufferEndDate+AboveBufferChartDays -> 45138 | H121: 0 | I121: 10 | J121: 12 | K121: 14 | L121: 1000 | N121: 445 | P121: 0.1 | Q121: =WORKDAY(ProjectStartDate,N121) -> 2025-01-29
F122: 53 | G122: =BufferEndDate+AboveBufferChartDays -> 45138 | H122: 0 | I122: 10 | J122: 12 | K122: 14 | L122: 1000 | N122: 450 | P122: 0.1 | Q122: =WORKDAY(ProjectStartDate,N122) -> 2025-02-05
F123: 53 | G123: =BufferEndDate+AboveBufferChartDays -> 45138 | H123: 0 | I123: 10 | J123: 12 | K123: 14 | L123: 1000 | N123: 455 | P123: 0.1 | Q123: =WORKDAY(ProjectStartDate,N123) -> 2025-02-12
F124: 53 | G124: =BufferEndDate+AboveBufferChartDays -> 45138 | H124: 0 | I124: 10 | J124: 12 | K124: 14 | L124: 1000 | N124: 460 | P124: 0.1 | Q124: =WORKDAY(ProjectStartDate,N124) -> 2025-02-19
F125: 53 | G125: =BufferEndDate+AboveBufferChartDays -> 45138 | H125: 0 | I125: 10 | J125: 12 | K125: 14 | L125: 1000 | N125: 465 | P125: 0.1 | Q125: =WORKDAY(ProjectStartDate,N125) -> 2025-02-26
F126: 53 | G126: =BufferEndDate+AboveBufferChartDays -> 45138 | H126: 0 | I126: 10 | J126: 12 | K126: 14 | L126: 1000 | N126: 470 | P126: 0.1 | Q126: =WORKDAY(ProjectStartDate,N126) -> 2025-03-05
F127: 53 | G127: =BufferEndDate+AboveBufferChartDays -> 45138 | H127: 0 | I127: 10 | J127: 12 | K127: 14 | L127: 1000 | N127: 475 | P127: 0.1 | Q127: =WORKDAY(ProjectStartDate,N127) -> 2025-03-12
F128: 53 | G128: =BufferEndDate+AboveBufferChartDays -> 45138 | H128: 0 | I128: 10 | J128: 12 | K128: 14 | L128: 1000 | N128: 480 | P128: =LeftMin+$P$31 -> 0.1 | Q128: =WORKDAY(ProjectStartDate,N128) -> 2025-03-19
F129: 53 | G129: =BufferEndDate+AboveBufferChartDays -> 45138 | H129: 0 | I129: 10 | J129: 12 | K129: 14 | L129: 1000 | N129: =N128+XMajor -> 485 | P129: 0.1 | Q129: =WORKDAY(ProjectStartDate,N129) -> 2025-03-26
F130: 53 | G130: =BufferEndDate+AboveBufferChartDays -> 45138 | H130: 0 | I130: 10 | J130: 12 | K130: 14 | L130: 1000 | N130: 490 | P130: 0.1 | Q130: =WORKDAY(ProjectStartDate,N130) -> 2025-04-02
F131: 53 | G131: =BufferEndDate+AboveBufferChartDays -> 45138 | H131: 0 | I131: 10 | J131: 12 | K131: 14 | L131: 1000 | N131: 495 | P131: 0.1 | Q131: =WORKDAY(ProjectStartDate,N131) -> 2025-04-09
F132: 53 | G132: =BufferEndDate+AboveBufferChartDays -> 45138 | H132: 0 | I132: 10 | J132: 12 | K132: =VALUE(BufferDays) -> 14 | L132: 1000 | N132: 500 | P132: 0.1 | Q132: =WORKDAY(ProjectStartDate,N132) -> 2025-04-16
F133: 53 | G133: =BufferEndDate+AboveBufferChartDays -> 45138 | H133: 0 | I133: 10 | J133: 12 | K133: 14 | L133: 1000 | N133: 505 | P133: 0.1 | Q133: =WORKDAY(ProjectStartDate,N133) -> 2025-04-23
F134: 53 | G134: =BufferEndDate+AboveBufferChartDays -> 45138 | H134: 0 | I134: 10 | J134: 12 | K134: 14 | L134: 1000 | N134: 510 | P134: 0.1 | Q134: =WORKDAY(ProjectStartDate,N134) -> 2025-04-30
F135: 53 | G135: =BufferEndDate+AboveBufferChartDays -> 45138 | H135: 0 | I135: 10 | J135: =J134 -> 12 | K135: 14 | L135: =L134 -> 1000 | N135: 515 | P135: 0.1 | Q135: =WORKDAY(ProjectStartDate,N135) -> 2025-05-07
F136: =F135 -> 53 | G136: =BufferEndDate+AboveBufferChartDays -> 45138 | H136: 0 | I136: 10 | J136: 12 | K136: 14 | L136: 1000 | N136: 520 | P136: 0.1 | Q136: =WORKDAY(ProjectStartDate,N136) -> 2025-05-14
F137: 53 | G137: =BufferEndDate+AboveBufferChartDays -> 45138 | H137: 0 | I137: 10 | J137: 12 | K137: 14 | L137: 1000 | N137: 525 | P137: 0.1 | Q137: =WORKDAY(ProjectStartDate,N137) -> 2025-05-21
F138: 53 | G138: =BufferEndDate+AboveBufferChartDays -> 45138 | H138: 0 | I138: 10 | J138: 12 | K138: 14 | L138: 1000 | N138: 530 | P138: 0.1 | Q138: =WORKDAY(ProjectStartDate,N138) -> 2025-05-28
F139: 53 | G139: =BufferEndDate+AboveBufferChartDays -> 45138 | H139: 0 | I139: 10 | J139: 12 | K139: 14 | L139: 1000 | N139: 535 | P139: 0.1 | Q139: =WORKDAY(ProjectStartDate,N139) -> 2025-06-04
F140: 53 | G140: =BufferEndDate+AboveBufferChartDays -> 45138 | H140: 0 | I140: 10 | J140: 12 | K140: 14 | L140: 1000 | N140: 540 | P140: 0.1 | Q140: =WORKDAY(ProjectStartDate,N140) -> 2025-06-11
F141: 53 | G141: =BufferEndDate+AboveBufferChartDays -> 45138 | H141: 0 | I141: 10 | J141: 12 | K141: 14 | L141: 1000 | N141: 545 | P141: 0.1 | Q141: =WORKDAY(ProjectStartDate,N141) -> 2025-06-18
F142: 53 | G142: =BufferEndDate+AboveBufferChartDays -> 45138 | H142: 0 | I142: 10 | J142: 12 | K142: 14 | L142: 1000 | N142: 550 | P142: 0.1 | Q142: =WORKDAY(ProjectStartDate,N142) -> 2025-06-25
F143: 53 | G143: =BufferEndDate+AboveBufferChartDays -> 45138 | H143: 0 | I143: 10 | J143: 12 | K143: 14 | L143: 1000 | N143: 555 | P143: 0.1 | Q143: =WORKDAY(ProjectStartDate,N143) -> 2025-07-02
F144: 53 | G144: =BufferEndDate+AboveBufferChartDays -> 45138 | H144: 0 | I144: 10 | J144: 12 | K144: 14 | L144: 1000 | N144: 560 | P144: 0.1 | Q144: =WORKDAY(ProjectStartDate,N144) -> 2025-07-09
F145: 53 | G145: =BufferEndDate+AboveBufferChartDays -> 45138 | H145: 0 | I145: 10 | J145: 12 | K145: 14 | L145: 1000 | N145: 565 | P145: 0.1 | Q145: =WORKDAY(ProjectStartDate,N145) -> 2025-07-16
F146: 53 | G146: =BufferEndDate+AboveBufferChartDays -> 45138 | H146: 0 | I146: 10 | J146: 12 | K146: 14 | L146: 1000 | N146: 570 | P146: 0.1 | Q146: =WORKDAY(ProjectStartDate,N146) -> 2025-07-23
F147: 53 | G147: =BufferEndDate+AboveBufferChartDays -> 45138 | H147: 0 | I147: 10 | J147: 12 | K147: 14 | L147: 1000 | N147: 575 | P147: 0.1 | Q147: =WORKDAY(ProjectStartDate,N147) -> 2025-07-30
F148: 53 | G148: =BufferEndDate+AboveBufferChartDays -> 45138 | H148: 0 | I148: 10 | J148: 12 | K148: 14 | L148: 1000 | N148: 580 | P148: 0.1 | Q148: =WORKDAY(ProjectStartDate,N148) -> 2025-08-06
F149: 53 | G149: =BufferEndDate+AboveBufferChartDays -> 45138 | H149: 0 | I149: 10 | J149: 12 | K149: 14 | L149: 1000 | N149: 585 | P149: 0.1 | Q149: =WORKDAY(ProjectStartDate,N149) -> 2025-08-13
F150: 53 | G150: =BufferEndDate+AboveBufferChartDays -> 45138 | H150: 0 | I150: 10 | J150: 12 | K150: 14 | L150: 1000 | N150: 590 | P150: 0.1 | Q150: =WORKDAY(ProjectStartDate,N150) -> 2025-08-20
F151: 53 | G151: =BufferEndDate+AboveBufferChartDays -> 45138 | H151: 0 | I151: 10 | J151: 12 | K151: 14 | L151: 1000 | N151: 595 | P151: 0.1 | Q151: =WORKDAY(ProjectStartDate,N151) -> 2025-08-27
F152: =F151 -> 53 | G152: =BufferEndDate+AboveBufferChartDays -> 45138 | H152: 0 | I152: 10 | J152: 12 | K152: 14 | L152: 1000 | N152: 600 | P152: 0.1 | Q152: =WORKDAY(ProjectStartDate,N152) -> 2025-09-03
F153: 53 | G153: =BufferEndDate+AboveBufferChartDays -> 45138 | H153: 0 | I153: 10 | J153: 12 | K153: 14 | L153: 1000 | N153: 605 | P153: 0.1 | Q153: =WORKDAY(ProjectStartDate,N153) -> 2025-09-10
F154: 53 | G154: =BufferEndDate+AboveBufferChartDays -> 45138 | H154: 0 | I154: 10 | J154: 12 | K154: 14 | L154: 1000 | N154: 610 | P154: 0.1 | Q154: =WORKDAY(ProjectStartDate,N154) -> 2025-09-17
F155: 53 | G155: =BufferEndDate+AboveBufferChartDays -> 45138 | H155: 0 | I155: 10 | J155: 12 | K155: 14 | L155: 1000 | N155: 615 | P155: 0.1 | Q155: =WORKDAY(ProjectStartDate,N155) -> 2025-09-24
F156: 53 | G156: =BufferEndDate+AboveBufferChartDays -> 45138 | H156: 0 | I156: 10 | J156: 12 | K156: 14 | L156: 1000 | N156: 620 | P156: 0.1 | Q156: =WORKDAY(ProjectStartDate,N156) -> 2025-10-01
F157: 53 | G157: =BufferEndDate+AboveBufferChartDays -> 45138 | H157: 0 | I157: 10 | J157: 12 | K157: 14 | L157: 1000 | N157: 625 | P157: 0.1 | Q157: =WORKDAY(ProjectStartDate,N157) -> 2025-10-08
F158: 53 | G158: =BufferEndDate+AboveBufferChartDays -> 45138 | H158: 0 | I158: 10 | J158: 12 | K158: 14 | L158: 1000 | N158: 630 | P158: 0.1 | Q158: =WORKDAY(ProjectStartDate,N158) -> 2025-10-15
F159: 53 | G159: =BufferEndDate+AboveBufferChartDays -> 45138 | H159: 0 | I159: 10 | J159: 12 | K159: 14 | L159: 1000 | N159: 635 | P159: 0.1 | Q159: =WORKDAY(ProjectStartDate,N159) -> 2025-10-22
F160: 53 | G160: =BufferEndDate+AboveBufferChartDays -> 45138 | H160: 0 | I160: 10 | J160: 12 | K160: 14 | L160: 1000 | N160: 640 | P160: 0.1 | Q160: =WORKDAY(ProjectStartDate,N160) -> 2025-10-29
F161: 53 | G161: =BufferEndDate+AboveBufferChartDays -> 45138 | H161: 0 | I161: 10 | J161: 12 | K161: 14 | L161: 1000 | N161: 645 | P161: 0.1 | Q161: =WORKDAY(ProjectStartDate,N161) -> 2025-11-05
F162: 53 | G162: =BufferEndDate+AboveBufferChartDays -> 45138 | H162: 0 | I162: 10 | J162: 12 | K162: 14 | L162: 1000 | N162: 650 | P162: 0.1 | Q162: =WORKDAY(ProjectStartDate,N162) -> 2025-11-12
F163: 53 | G163: =BufferEndDate+AboveBufferChartDays -> 45138 | H163: 0 | I163: 10 | J163: 12 | K163: 14 | L163: 1000 | N163: 655 | P163: 0.1 | Q163: =WORKDAY(ProjectStartDate,N163) -> 2025-11-19
F164: 53 | G164: =BufferEndDate+AboveBufferChartDays -> 45138 | H164: 0 | I164: 10 | J164: 12 | K164: 14 | L164: 1000 | N164: 660 | P164: 0.1 | Q164: =WORKDAY(ProjectStartDate,N164) -> 2025-11-26
F165: 53 | G165: =BufferEndDate+AboveBufferChartDays -> 45138 | H165: 0 | I165: 10 | J165: 12 | K165: 14 | L165: 1000 | N165: 665 | P165: 0.1 | Q165: =WORKDAY(ProjectStartDate,N165) -> 2025-12-03
F166: 53 | G166: =BufferEndDate+AboveBufferChartDays -> 45138 | H166: 0 | I166: 10 | J166: 12 | K166: 14 | L166: 1000 | N166: 670 | P166: 0.1 | Q166: =WORKDAY(ProjectStartDate,N166) -> 2025-12-10
F167: 53 | G167: =BufferEndDate+AboveBufferChartDays -> 45138 | H167: 0 | I167: 10 | J167: 12 | K167: 14 | L167: 1000 | N167: 675 | P167: 0.1 | Q167: =WORKDAY(ProjectStartDate,N167) -> 2025-12-17
F168: =F167 -> 53 | G168: =BufferEndDate+AboveBufferChartDays -> 45138 | H168: 0 | I168: 10 | J168: 12 | K168: 14 | L168: 1000 | N168: 680 | P168: 0.1 | Q168: =WORKDAY(ProjectStartDate,N168) -> 2025-12-24
F169: 53 | G169: =BufferEndDate+AboveBufferChartDays -> 45138 | H169: 0 | I169: 10 | J169: 12 | K169: 14 | L169: 1000 | N169: 685 | P169: 0.1 | Q169: =WORKDAY(ProjectStartDate,N169) -> 2025-12-31
F170: 53 | G170: =BufferEndDate+AboveBufferChartDays -> 45138 | H170: 0 | I170: 10 | J170: 12 | K170: 14 | L170: 1000 | N170: 690 | P170: 0.1 | Q170: =WORKDAY(ProjectStartDate,N170) -> 2026-01-07
F171: 53 | G171: =BufferEndDate+AboveBufferChartDays -> 45138 | H171: 0 | I171: 10 | J171: 12 | K171: 14 | L171: 1000 | N171: 695 | P171: 0.1 | Q171: =WORKDAY(ProjectStartDate,N171) -> 2026-01-14
F172: 53 | G172: =BufferEndDate+AboveBufferChartDays -> 45138 | H172: 0 | I172: 10 | J172: 12 | K172: 14 | L172: 1000 | N172: 700 | P172: 0.1 | Q172: =WORKDAY(ProjectStartDate,N172) -> 2026-01-21
F173: 53 | G173: =BufferEndDate+AboveBufferChartDays -> 45138 | H173: 0 | I173: 10 | J173: 12 | K173: 14 | L173: 1000 | N173: 705 | P173: 0.1 | Q173: =WORKDAY(ProjectStartDate,N173) -> 2026-01-28
F174: 53 | G174: =BufferEndDate+AboveBufferChartDays -> 45138 | H174: 0 | I174: 10 | J174: 12 | K174: 14 | L174: 1000 | N174: 710 | P174: 0.1 | Q174: =WORKDAY(ProjectStartDate,N174) -> 2026-02-04
F175: 53 | G175: =BufferEndDate+AboveBufferChartDays -> 45138 | H175: 0 | I175: 10 | J175: 12 | K175: 14 | L175: 1000 | N175: 715 | P175: 0.1 | Q175: =WORKDAY(ProjectStartDate,N175) -> 2026-02-11
F176: 53 | G176: =BufferEndDate+AboveBufferChartDays -> 45138 | H176: 0 | I176: 10 | J176: 12 | K176: 14 | L176: 1000 | N176: 720 | P176: 0.1 | Q176: =WORKDAY(ProjectStartDate,N176) -> 2026-02-18
F177: 53 | G177: =BufferEndDate+AboveBufferChartDays -> 45138 | H177: 0 | I177: 10 | J177: 12 | K177: 14 | L177: 1000 | N177: 725 | P177: 0.1 | Q177: =WORKDAY(ProjectStartDate,N177) -> 2026-02-25
F178: 53 | G178: =BufferEndDate+AboveBufferChartDays -> 45138 | H178: 0 | I178: 10 | J178: 12 | K178: 14 | L178: 1000 | N178: 730 | P178: 0.1 | Q178: =WORKDAY(ProjectStartDate,N178) -> 2026-03-04
F179: 53 | G179: =BufferEndDate+AboveBufferChartDays -> 45138 | H179: 0 | I179: 10 | J179: 12 | K179: 14 | L179: 1000 | N179: 735 | P179: 0.1 | Q179: =WORKDAY(ProjectStartDate,N179) -> 2026-03-11
F180: 53 | G180: =BufferEndDate+AboveBufferChartDays -> 45138 | H180: 0 | I180: 10 | J180: 12 | K180: 14 | L180: 1000 | N180: 740 | P180: 0.1 | Q180: =WORKDAY(ProjectStartDate,N180) -> 2026-03-18
F181: 53 | G181: =BufferEndDate+AboveBufferChartDays -> 45138 | H181: 0 | I181: 10 | J181: 12 | K181: 14 | L181: 1000 | N181: 745 | P181: 0.1 | Q181: =WORKDAY(ProjectStartDate,N181) -> 2026-03-25
F182: 53 | G182: =BufferEndDate+AboveBufferChartDays -> 45138 | H182: 0 | I182: 10 | J182: 12 | K182: 14 | L182: 1000 | N182: 750 | P182: 0.1 | Q182: =WORKDAY(ProjectStartDate,N182) -> 2026-04-01
F183: 53 | G183: =BufferEndDate+AboveBufferChartDays -> 45138 | H183: 0 | I183: 10 | J183: 12 | K183: 14 | L183: 1000 | N183: 755 | P183: 0.1 | Q183: =WORKDAY(ProjectStartDate,N183) -> 2026-04-08
F184: =F183 -> 53 | G184: =BufferEndDate+AboveBufferChartDays -> 45138 | H184: 0 | I184: 10 | J184: 12 | K184: 14 | L184: 1000 | N184: 760 | P184: 0.1 | Q184: =WORKDAY(ProjectStartDate,N184) -> 2026-04-15
F185: 53 | G185: =BufferEndDate+AboveBufferChartDays -> 45138 | H185: 0 | I185: 10 | J185: 12 | K185: 14 | L185: 1000 | N185: 765 | P185: 0.1 | Q185: =WORKDAY(ProjectStartDate,N185) -> 2026-04-22
F186: 53 | G186: =BufferEndDate+AboveBufferChartDays -> 45138 | H186: 0 | I186: 10 | J186: 12 | K186: 14 | L186: 1000 | N186: 770 | P186: 0.1 | Q186: =WORKDAY(ProjectStartDate,N186) -> 2026-04-29
F187: 53 | G187: =BufferEndDate+AboveBufferChartDays -> 45138 | H187: 0 | I187: 10 | J187: 12 | K187: 14 | L187: 1000 | N187: 775 | P187: 0.1 | Q187: =WORKDAY(ProjectStartDate,N187) -> 2026-05-06
F188: 53 | G188: =BufferEndDate+AboveBufferChartDays -> 45138 | H188: 0 | I188: 10 | J188: 12 | K188: 14 | L188: 1000 | N188: 780 | P188: 0.1 | Q188: =WORKDAY(ProjectStartDate,N188) -> 2026-05-13
F189: 53 | G189: =BufferEndDate+AboveBufferChartDays -> 45138 | H189: 0 | I189: 10 | J189: 12 | K189: 14 | L189: 1000 | N189: 785 | P189: 0.1 | Q189: =WORKDAY(ProjectStartDate,N189) -> 2026-05-20
F190: 53 | G190: =BufferEndDate+AboveBufferChartDays -> 45138 | H190: 0 | I190: 10 | J190: 12 | K190: 14 | L190: 1000 | N190: 790 | P190: 0.1 | Q190: =WORKDAY(ProjectStartDate,N190) -> 2026-05-27
F191: 53 | G191: =BufferEndDate+AboveBufferChartDays -> 45138 | H191: 0 | I191: 10 | J191: 12 | K191: 14 | L191: 1000 | N191: 795 | P191: 0.1 | Q191: =WORKDAY(ProjectStartDate,N191) -> 2026-06-03
F192: 53 | G192: =BufferEndDate+AboveBufferChartDays -> 45138 | H192: 0 | I192: 10 | J192: 12 | K192: 14 | L192: 1000 | N192: 800 | P192: =LeftMin+$P$31 -> 0.1 | Q192: =WORKDAY(ProjectStartDate,N192) -> 2026-06-10
F193: 53 | G193: =BufferEndDate+AboveBufferChartDays -> 45138 | H193: 0 | I193: 10 | J193: 12 | K193: 14 | L193: 1000 | N193: =N192+XMajor -> 805 | P193: 0.1 | Q193: =WORKDAY(ProjectStartDate,N193) -> 2026-06-17
F194: 53 | G194: =BufferEndDate+AboveBufferChartDays -> 45138 | H194: 0 | I194: 10 | J194: 12 | K194: 14 | L194: 1000 | N194: 810 | P194: 0.1 | Q194: =WORKDAY(ProjectStartDate,N194) -> 2026-06-24
F195: 53 | G195: =BufferEndDate+AboveBufferChartDays -> 45138 | H195: 0 | I195: 10 | J195: 12 | K195: 14 | L195: 1000 | N195: 815 | P195: 0.1 | Q195: =WORKDAY(ProjectStartDate,N195) -> 2026-07-01
F196: 53 | G196: =BufferEndDate+AboveBufferChartDays -> 45138 | H196: 0 | I196: 10 | J196: 12 | K196: =VALUE(BufferDays) -> 14 | L196: 1000 | N196: 820 | P196: 0.1 | Q196: =WORKDAY(ProjectStartDate,N196) -> 2026-07-08
F197: 53 | G197: =BufferEndDate+AboveBufferChartDays -> 45138 | H197: 0 | I197: 10 | J197: 12 | K197: 14 | L197: 1000 | N197: 825 | P197: 0.1 | Q197: =WORKDAY(ProjectStartDate,N197) -> 2026-07-15
F198: 53 | G198: =BufferEndDate+AboveBufferChartDays -> 45138 | H198: 0 | I198: 10 | J198: 12 | K198: 14 | L198: 1000 | N198: 830 | P198: 0.1 | Q198: =WORKDAY(ProjectStartDate,N198) -> 2026-07-22
F199: 53 | G199: =BufferEndDate+AboveBufferChartDays -> 45138 | H199: 0 | I199: 10 | J199: 12 | K199: 14 | L199: 1000 | N199: 835 | P199: 0.1 | Q199: =WORKDAY(ProjectStartDate,N199) -> 2026-07-29
F200: =F199 -> 53 | G200: =BufferEndDate+AboveBufferChartDays -> 45138 | H200: 0 | I200: 10 | J200: 12 | K200: 14 | L200: 1000 | N200: 840 | P200: 0.1 | Q200: =WORKDAY(ProjectStartDate,N200) -> 2026-08-05
... 368 more rows
